[Event "Olomouc Chess Summer-GM 2022"]
[Site "Olomouc"]
[Date "2022.08.14"]
[Round "3.1"]
[White "Krejci, Jan"]
[Black "Mirzoev, Azer"]
[Result "1/2-1/2"]
[ECO "A06"]
[WhiteElo "2511"]
[BlackElo "2424"]
[Annotator "TA"]
[PlyCount "73"]
[EventDate "2022.08.10"]
[EventCountry "CZE"]
[SourceTitle "playchess.com"]
[Source "ChessBase"]
[SourceQuality "1"]
[TimeControl "40/5400+30:1800+30"]

{[%evp 9,73,15,25,23,27,-8,20,10,13,0,0,0,3,6,18,-32,0,-30,-24,-33,0,0,0,0,0,-26,0,-23,0,0,0,0,0,0,0,0,0,0,0,0,7,6,6,6,7,7,6,7,7,7,14,7,7,7,7,7,7,7,9,0,0,0,0,0,0,0]} 1. Nf3 {[%emt 0:00:03]} d5 {[%emt 0:00:42]} 2. e3 {[%emt 0:00:09]} c5 {[%emt 0:00:51]} 3. b3 {[%emt 0:00:14]} Nf6 {[%emt 0:00:32]} 4. Bb2 {[%emt 0:00:11]} a6 {[%emt 0:00:26]} 5. c4 {[%emt 0:02:45]} Nc6 {[%emt 0:00:12]} 6. cxd5 {[%emt 0:03:54] A06: Réti Opening: 1 Nf3 d5.} Nxd5 {[%emt 0:00:08]} 7. a3 {[%emt 0:00:08]} e6 {[%emt 0:01:57]} 8. Qc2 {[%emt 0:02:15] [#]} Nf6 $146 {[%emt 0:00:57]} ({Predecessor:} 8... Qc7 9. Be2 b6 10. O-O Bb7 11. Rc1 Rc8 12. Nc3 Nf6 13. Qb1 Qd8 14. Na4 Bd6 {½-½ (40) Bogner,S (2569)-Brochet,P (2383) Belfort 2012}) 9. Nc3 {[%emt 0:01:19]} b6 {[%emt 0:03:53]} 10. Ne4 {[%emt 0:08:58]} Nxe4 {[%emt 0:07:49]} 11. Qxe4 {[%emt 0:00:03]} Bb7 {[%emt 0:00:09]} 12. Qg4 {[%emt 0:05:07]} ({Better is} 12. Be2 $11) 12... Rc8 {[%emt 0:04:11]} 13. Be2 {[%emt 0:05:46]} ({Not} 13. Bxg7 $2 Rg8 14. Qf4 Rxg7 $19) 13... h5 {[%emt 0:06:05]} 14. Qh3 {[%emt 0:01:03]} Na5 {[%emt 0:02:43]} 15. b4 {[%emt 0:08:20]} cxb4 {[%emt 0:04:56]} 16. axb4 {[%emt 0:00:04]} Nb3 {[%emt 0:07:28]} 17. Rd1 $1 {[%emt 0:01:14]} Bxb4 {[%emt 0:12:52] Black wants to play ...Rc2.} 18. O-O {[%emt 0:00:05]} Rc2 {[%emt 0:05:26]} 19. Rb1 {[%emt 0:22:04][%cal Bd1b1,Bb1b4,Bb4b6,Bb6c6,Bc6c5][%mdl 32] The position is equal.} Nxd2 {[%emt 0:07:55]} 20. Nxd2 {[%emt 0:03:43]} Rxd2 {[%emt 0:00:09]} 21. Bxg7 {[%emt 0:04:38]} Rg8 {[%emt 0:00:27]} (21... Rxe2 $2 22. Bxh8 Bc5 23. Qxh5 $18) 22. Bf3 {[%emt 0:00:57]} Bxf3 {[%emt 0:08:24]} 23. Qxf3 {[%emt 0:00:07]} Rxg7 {[%emt 0:04:49]} 24. Rxb4 {[%emt 0:00:04]} Qd5 {[%emt 0:03:04]} 25. Qxd5 {[%emt 0:03:17]} Rxd5 {[%emt 0:00:00]} 26. Rxb6 $11 {[%emt 0:00:05][%mdl 4096] Endgame KRR-KRR} Ra5 {[%emt 0:00:16]} 27. Rc1 {[%emt 0:04:18]} Rgg5 {[%emt 0:01:00]} 28. h4 {[%emt 0:01:58]} Rgb5 {[%emt 0:00:47]} 29. Rbc6 {[%emt 0:02:18]} Rd5 {[%emt 0:02:08]} 30. R1c2 {[%emt 0:03:10]} Ke7 {[%emt 0:00:36]} 31. e4 {[%emt 0:01:45]} Rd7 {[%emt 0:01:45]} 32. R6c5 {[%emt 0:00:33]} Rb5 {[%emt 0:02:19]} 33. f3 {[%emt 0:06:24]} Kf6 {[%emt 0:00:56]} 34. Kf2 {[%emt 0:02:51]} Rd2+ {[%emt 0:00:50]} 35. Rxd2 {[%emt 0:00:20] [#] aiming for Rxb5.} Rxc5 {[%emt 0:00:07]} 36. Rd7 {[%emt 0:00:03]} Rc2+ {[%emt 0:00:42]} 37. Kg3 {[%emt 0:00:35] An interesting draw.  Weighted Error Value: White=0.06 (flawless) /Black=0.06 (flawless)} 1/2-1/2

[Event "Olomouc Chess Summer-GM 2022"]
[Site "Olomouc"]
[Date "2022.08.14"]
[Round "3.2"]
[White "Frank, Adam"]
[Black "Sorm, Daniel"]
[Result "1/2-1/2"]
[ECO "B63"]
[WhiteElo "2313"]
[BlackElo "2308"]
[Annotator "TA"]
[PlyCount "67"]
[EventDate "2022.08.10"]
[EventCountry "CZE"]
[SourceTitle "playchess.com"]
[Source "ChessBase"]
[SourceQuality "1"]
[TimeControl "40/5400+30:1800+30"]

{[%evp 22,67,0,0,0,0,-1,-7,40,-21,-33,-74,0,-12,26,0,15,8,0,-77,46,12,18,15,13,16,11,-8,-6,-21,-21,-14,19,10,12,8,22,20,16,0,0,0,22,11,113,0,0,0]} 1. e4 {[%emt 0:00:03]} c5 {[%emt 0:00:13]} 2. Nf3 {[%emt 0:00:05]} d6 {[%emt 0:00:16]} 3. d4 {[%emt 0:00:04]} cxd4 {[%emt 0:00:05]} 4. Nxd4 {[%emt 0:00:04]} Nf6 {[%emt 0:00:07]} 5. Nc3 {[%emt 0:00:03]} Nc6 {[%emt 0:00:06]} 6. Bg5 {[%emt 0:00:04]} e6 {[%emt 0:00:18]} 7. Qd2 {[%emt 0:00:05]} Qb6 {[%emt 0:00:19]} 8. Nb3 {[%emt 0:00:42]} Be7 {[%emt 0:00:15]} 9. f3 {[%emt 0:12:14]} O-O {[%emt 0:02:00]} 10. O-O-O {[%emt 0:00:09]} Rd8 {[%emt 0:00:31]} 11. Be3 {[%emt 0:19:04]} Qc7 {[%emt 0:00:15]} 12. Qf2 {[%emt 0:00:04]} d5 {[%emt 0:09:51] B63: Sicilian: Richter-Rauzer: 7...Be7 and unusual Black 7th moves.} 13. Be2 {[%emt 0:03:33]} dxe4 {[%emt 0:06:25]} 14. fxe4 {[%emt 0:02:01]} Bd7 {[%emt 0:06:03] [#]} (14... b6 $11 {is more appropriate.}) 15. Bf3 $146 {[%emt 0:11:55]} (15. Rhf1 $14) ({Predecessor:} 15. g4 Ne5 16. Bf4 Nexg4 17. Qg3 e5 18. Bd2 Rac8 19. Bd3 Nh5 20. Qf3 Nf4 21. Bxf4 exf4 {0-1 (29) Chevrier,T (2156)-Levacic,D (2295) France 1999}) 15... Be8 {[%emt 0:12:50]} 16. Kb1 {[%emt 0:03:09]} Nd7 {[%emt 0:06:46]} (16... Rxd1+ $1 $17 17. Bxd1 a6) 17. h4 {[%emt 0:11:54]} Nde5 {[%emt 0:04:07]} 18. Nb5 {[%emt 0:01:15][%csl LRa7,LRc7]} Qb8 {[%emt 0:03:59]} 19. Rxd8 {[%emt 0:03:24]} Bxd8 {[%emt 0:00:31]} 20. Rd1 {[%emt 0:02:29] [#]} (20. Be2 $11 {keeps the balance.}) 20... b6 {[%emt 0:04:13]} ({Better is} 20... Nc4 $1 $17 {...Qe5 is the strong threat.} 21. Bc1 Bb6) 21. Nd6 {[%emt 0:03:05]} Be7 {[%emt 0:02:09]} 22. Nxe8 {[%emt 0:01:07]} Qxe8 {[%emt 0:00:09]} 23. Be2 {[%emt 0:00:08]} Rd8 {[%emt 0:04:41]} 24. Nd4 {[%emt 0:06:28]} Nxd4 {[%emt 0:05:08]} 25. Bxd4 {[%emt 0:03:59] A strong pair of Bishops.} Nc6 {[%emt 0:00:57][%cal Oe7h4]} 26. c3 {[%emt 0:00:04]} (26. h5 {looks sharper.} Rxd4 27. Rxd4 Bc5 28. Bb5) 26... e5 {[%emt 0:06:47]} 27. Be3 {[%emt 0:00:03]} Rxd1+ {[%emt 0:00:05]} 28. Bxd1 {[%emt 0:00:03]} Qd7 {[%emt 0:01:04]} 29. Be2 {[%emt 0:01:53]} Nd8 {[%emt 0:01:34]} 30. g3 {[%emt 0:02:28]} Nb7 {[%emt 0:05:13]} 31. Bc4 {[%emt 0:04:37]} Bc5 {[%emt 0:00:47] And now ...Qd1+ would win.} 32. Bd5 {[%emt 0:00:24]} g6 {[%emt 0:04:53] [#]} (32... Nd6 $11 {remains equal.} 33. a3 (33. Bxc5 Nxe4 34. Bxf7+ Qxf7 $17) 33... Bxe3 34. Qxe3 Qg4) 33. a3 {[%emt 0:02:57] White is more active.} (33. Bxc5 $1 $16 Nxc5 34. b4) 33... Kg7 $11 {[%emt 0:00:49]} 34. Bxc5 {[%emt 0:03:29] Weighted Error Value: White=0.25 (precise) /Black=0.31} 1/2-1/2

[Event "Olomouc Chess Summer-GM 2022"]
[Site "Olomouc"]
[Date "2022.08.14"]
[Round "3.3"]
[White "Winkelman, Albert"]
[Black "Svanda, Ondrej"]
[Result "1/2-1/2"]
[ECO "A04"]
[WhiteElo "2278"]
[BlackElo "2363"]
[Annotator "TA"]
[PlyCount "93"]
[EventDate "2022.08.10"]
[EventCountry "CZE"]
[SourceTitle "playchess.com"]
[Source "ChessBase"]
[SourceQuality "1"]
[TimeControl "40/5400+30:1800+30"]

{[%evp 13,93,0,21,-41,-16,-25,-1,-22,-10,-54,-14,-13,-15,-37,0,-22,-29,-20,10,-39,-15,-13,-15,-29,-3,-18,-14,-23,-1,-130,-129,-150,-146,-141,-74,-70,-76,-77,-14,-15,0,0,32,14,26,-98,6,6,6,10,6,0,24,15,13,4,43,22,40,22,22,22,31,18,30,20,35,36,38,18,117,114,122,89,142,143,199,193,225,209,160,73]} 1. Nf3 {[%emt 0:00:06]} c5 {[%emt 0:00:18]} 2. g3 {[%emt 0:00:12]} g6 {[%emt 0:00:10]} 3. Bg2 {[%emt 0:00:14]} Bg7 {[%emt 0:00:10]} 4. O-O {[%emt 0:00:14]} Nc6 {[%emt 0:00:03]} 5. c4 {[%emt 0:03:57]} e6 {[%emt 0:04:57]} 6. e3 {[%emt 0:09:03]} Nge7 {[%emt 0:00:19]} 7. Nc3 {[%emt 0:00:37]} O-O {[%emt 0:03:09] [#]} 8. Ne4 $146 {[%emt 0:01:42] A37: Symmetrical English vs ...g6: 4 Bg2 Bg7 5 Nf3.} (8. d4 $11) ({Predecessor:} 8. d4 cxd4 9. exd4 d5 10. cxd5 Nxd5 11. Bg5 Qb6 12. Na4 Qa5 13. a3 b6 14. Rc1 Bd7 15. Nc3 Nxc3 16. Rxc3 Rac8 17. Qd2 Rfe8 18. Rfc1 Qa4 {0-1 (64) Jones,G (2671)-Timofeev,A (2574) Chess.com INT 2022}) 8... b6 {[%emt 0:04:13]} 9. Nd6 {[%emt 0:07:24]} Qc7 {[%emt 0:00:35]} 10. Nxc8 {[%emt 0:04:30] The position is equal.} Raxc8 {[%emt 0:00:02]} 11. d4 {[%emt 0:05:25]} d5 {[%emt 0:03:46]} 12. dxc5 {[%emt 0:02:47]} bxc5 {[%emt 0:01:21]} 13. cxd5 {[%emt 0:09:32]} exd5 {[%emt 0:01:44]} 14. Qa4 {[%emt 0:00:33]} Rb8 {[%emt 0:03:16]} 15. Rb1 {[%emt 0:00:39]} a5 {[%emt 0:08:05]} 16. Qa3 {[%emt 0:08:48]} (16. Bd2 $11) 16... Rb5 {[%emt 0:06:05]} 17. Bd2 {[%emt 0:01:30]} Rfb8 {[%emt 0:00:21][%cal Rg7b2]} 18. Bc3 {[%emt 0:03:21]} d4 {[%emt 0:04:05]} 19. exd4 {[%emt 0:00:11]} cxd4 {[%emt 0:00:03]} 20. Bd2 {[%emt 0:00:55] A strong pair of Bishops.} Qb6 {[%emt 0:00:16]} 21. b3 {[%emt 0:00:52]} (21. Bf4 $11 {remains equal.}) 21... Nd5 $1 $17 {[%emt 0:00:10]} 22. Rbc1 {[%emt 0:04:33]} Nc3 $1 {[%emt 0:11:26]} 23. Kh1 {[%emt 0:02:13][%cal Of3d4]} (23. Nxd4 $2 Nxd4 24. Kh1 Nce2 $19) 23... Rc5 {[%emt 0:01:49]} (23... Rf5 $142 24. Bf4 (24. Nxd4 $2 Nxd4 25. Bxc3 Nb5 $17) 24... Rd8) 24. Ng5 {[%emt 0:00:56]} Nb4 {[%emt 0:04:09]} 25. Ne4 {[%emt 0:00:56]} Nxe4 {[%emt 0:03:31]} (25... Rh5 $17 {Strongly threatening ...Nd3.} 26. Nxc3 dxc3 27. Bxc3 Nd3 28. Bxg7 Nxc1) 26. Bxe4 $11 {[%emt 0:00:17]} Re8 {[%emt 0:03:49]} 27. Bf3 {[%emt 0:01:16]} Rec8 {[%emt 0:04:57]} 28. Rxc5 {[%emt 0:06:02]} Rxc5 {[%emt 0:00:01]} (28... Qxc5 29. Rc1 Qf8 30. Rxc8 (30. Qxa5 Rxc1+ 31. Bxc1 Nd3 $16) 30... Qxc8 31. Qxa5 $16) 29. Re1 {[%emt 0:05:55]} (29. Qa4 $11) 29... Qb5 {[%emt 0:06:51]} (29... Bf8 $1 $17 {aiming for ...Rc2.} 30. Bxb4 axb4) 30. Qa4 {[%emt 0:05:48]} Qxa4 {[%emt 0:01:37]} 31. bxa4 {[%emt 0:00:07] Intending Re8+ and mate.} Be5 {[%emt 0:05:52]} 32. Bd1 {[%emt 0:06:11]} Kg7 {[%emt 0:03:57]} 33. Bb3 {[%emt 0:00:14]} Nd3 {[%emt 0:03:41]} 34. Rf1 {[%emt 0:01:47]} Bf6 {[%emt 0:02:23]} 35. f4 {[%emt 0:01:31]} Nb4 {[%emt 0:00:31]} 36. Rc1 {[%emt 0:01:29]} Rxc1+ {[%emt 0:01:57]} 37. Bxc1 {[%emt 0:00:07][%mdl 4096] Endgame KBB-KBN} Bd8 {[%emt 0:00:01]} 38. Kg2 {[%emt 0:01:02]} f5 {[%emt 0:00:06]} 39. Kf3 {[%emt 0:00:38]} Kf6 {[%emt 0:00:08]} 40. Ke2 {[%emt 0:00:34]} Bb6 {[%emt 0:00:24]} 41. a3 {[%emt 0:30:38]} Nc6 {[%emt 0:31:40]} (41... d3+ $11 {keeps the balance.} 42. Kd2 Na6) 42. Kd3 $16 {[%emt 0:00:20]} Ke7 {[%emt 0:01:03]} 43. Bb2 {[%emt 0:02:08]} Kd6 {[%emt 0:03:04] [#]} (43... h6 $142) 44. Bg8 $1 {[%emt 0:03:18] White is clearly better.} h6 {[%emt 0:00:03] [#]} (44... Ne7 $16 45. Bf7 (45. Bxh7 Kd5 $16) 45... Nc6) 45. Bh7 $1 $18 {[%emt 0:00:00]} Ne7 {[%emt 0:00:00]} 46. Bxd4 {[%emt 0:00:00]} Bc5 {[%emt 0:00:00]} 47. Bf6 {[%emt 0:00:00] What a bad dream for Black.  Weighted Error Value: White=0.23 (precise) /Black=0.24 (precise)} ({White should play} 47. Bc3) 1/2-1/2

[Event "Olomouc Chess Summer-GM 2022"]
[Site "Olomouc"]
[Date "2022.08.14"]
[Round "3.4"]
[White "Pap, Gyula"]
[Black "Baum, Jonasz"]
[Result "1/2-1/2"]
[ECO "B51"]
[WhiteElo "2481"]
[BlackElo "2410"]
[Annotator "TA"]
[PlyCount "24"]
[EventDate "2022.08.10"]
[EventCountry "CZE"]
[SourceTitle "playchess.com"]
[Source "ChessBase"]
[SourceQuality "1"]
[TimeControl "40/5400+30:1800+30"]

{[%evp 9,24,3,17,12,8,11,23,22,17,-18,0,-38,-37,-30,-45,-52,-54]} 1. e4 {[%emt 0:00:03]} c5 {[%emt 0:00:09]} 2. Nf3 {[%emt 0:00:08]} d6 {[%emt 0:00:05]} 3. Bb5+ {[%emt 0:07:36]} Nd7 {[%emt 0:00:11]} 4. d4 {[%emt 0:06:17]} cxd4 {[%emt 0:00:06]} 5. Qxd4 {[%emt 0:01:00]} a6 {[%emt 0:00:08]} 6. Be2 {[%emt 0:05:38] B51: Sicilian: Moscow Variation (3 Bb5+) without 3...Bd7.} e5 {[%emt 0:00:16]} 7. Qe3 {[%emt 0:01:37]} Ngf6 {[%emt 0:01:16]} 8. c4 {[%emt 0:02:19] Inhibits b5. White has an edge.} d5 {[%emt 0:00:55]} 9. cxd5 {[%emt 0:07:55]} Bc5 {[%emt 0:00:06][%mdl 64] [#] Deflection} 10. Qb3 {[%emt 0:00:41]} Nxe4 {[%emt 0:01:34] [#]} 11. Be3 $146 {[%emt 0:00:11]} ({Predecessor:} 11. O-O Qb6 12. Qxb6 Bxb6 13. Nbd2 Nd6 14. Nc4 Nxc4 15. Bxc4 f6 16. Nd2 Bd4 17. Ne4 {0-1 (49) Gavrilescu,D (2436)-Kotronias,V (2509) Budapest 2018}) 11... O-O {[%emt 0:10:46]} 12. O-O {[%emt 0:01:20]} Bxe3 {[%emt 0:11:13] White got outplayed after the opening.  Weighted Error Value: White=0.12 (very precise) /Black=0.02 (flawless)} 1/2-1/2

[Event "Olomouc Chess Summer-GM 2022"]
[Site "Olomouc"]
[Date "2022.08.14"]
[Round "3.5"]
[White "Stalmach, Richard"]
[Black "Lutsko, Artem"]
[Result "0-1"]
[ECO "E32"]
[WhiteElo "2363"]
[BlackElo "2392"]
[Annotator "TA"]
[PlyCount "58"]
[EventDate "2022.08.10"]
[EventCountry "CZE"]
[SourceTitle "playchess.com"]
[Source "ChessBase"]
[SourceQuality "1"]
[TimeControl "40/5400+30:1800+30"]

{[%evp 13,58,0,0,0,0,0,0,0,0,0,0,0,0,0,0,0,0,0,0,0,0,0,0,-97,-105,-97,-108,-100,-17,-18,-18,-77,-83,-91,-60,-61,-49,-125,-125,-189,-120,-114,-122,-447,-439,-29991,-29992]} 1. d4 Nf6 2. c4 e6 3. Nc3 Bb4 4. Qc2 O-O 5. e4 {[%cal Be2e4,Be4e5][%mdl 32]} d5 6. e5 Ne4 7. Bd3 c5 $1 8. Nf3 {E32: Nimzo-Indian: Classical (4 Qc2): 4...0-0.} cxd4 9. Nxd4 Nd7 10. Bf4 {The position is equal.} Qh4 11. g3 Qh5 12. O-O g5 13. cxd5 Bxc3 14. bxc3 {[%cal Od5e6]} exd5 15. Be3 {f3 is the strong threat.} Nxe5 16. f3 {Prevents Bg4.} ({Of course not} 16. Bxe4 dxe4 17. Qxe4 Re8 $15) 16... Nc5 17. Bf5 Ne6 $1 {[%mdl 4] [#] is now more promising than 17...f6.} 18. f4 $146 (18. Rae1 $11 {remains equal.}) ({Predecessor:} 18. Rae1 Nxd4 19. Bxd4 Nc6 20. Bf6 Qh6 21. Bxc8 Raxc8 22. Qf5 Qg6 23. Qxg5 Qxg5 24. Bxg5 {½-½ (66) Vidit,S (2723)-Ding,L (2806) chess24.com INT 2022}) 18... Nc4 $1 $17 19. Bc1 Nxd4 20. cxd4 {[#]} Nd6 ({Better is} 20... Re8 $1 $17 {[%cal Re8e2] White must now prevent ...Re2.} 21. g4 Qh4 22. fxg5 Nd6) 21. Bd3 $11 {This bishop pair is nice.} Bh3 22. Re1 (22. Qd1 $11 {keeps the balance.} Qxd1 23. Rxd1) 22... Rfe8 $36 {[%mdl 2048] White is under strong pressure.} 23. Ba3 Nc4 24. Bxc4 dxc4 25. fxg5 (25. Be7 $1 $15) 25... Qxg5 26. Bd6 (26. Bb4 $17) 26... Rxe1+ (26... c3 $19 27. Re5 Rxe5 28. Bxe5 Rc8) 27. Rxe1 Qd5 {[%csl LRd4,LRd6]} 28. Be5 {[%mdl 8192] [#]} (28. Bb4 $17 {is tougher.}) 28... Re8 $1 $19 29. Re2 {[#]} (29. g4 $19 f6 30. Re3 fxe5 31. Rxh3 Qxd4+ 32. Kg2 Qd5+ 33. Kg1) 29... Rxe5 $1 {[%mdl 512] Weighted Error Value: White=0.81/Black=0.07 (flawless)} 0-1

[Event "Olomouc Chess Summer-GM 2022"]
[Site "Olomouc"]
[Date "2022.08.15"]
[Round "4.1"]
[White "Mirzoev, Azer"]
[Black "Lutsko, Artem"]
[Result "1-0"]
[ECO "D37"]
[WhiteElo "2424"]
[BlackElo "2392"]
[Annotator "TA"]
[PlyCount "143"]
[EventDate "2022.08.10"]
[EventCountry "CZE"]
[SourceTitle "playchess.com"]
[Source "ChessBase"]
[SourceQuality "1"]
[TimeControl "40/5400+30:1800+30"]

{[%evp 24,143,17,0,12,0,17,0,13,0,0,0,0,0,0,0,108,0,47,0,-13,-69,-67,-69,-21,-11,-19,-39,-43,-36,0,0,20,25,239,40,117,0,0,0,0,-13,-14,-13,-18,-16,0,0,0,0,30,0,0,0,0,0,0,0,0,0,0,0,0,8,399,459,364,497,476,289,508,508,508,456,12283,10480,5791,5687,29957,29959,29964,29964,29965,29966,29966,29967,29964,29966,29963,423,29971,8,8,8,8,0,8,0,29977,29973,29973,29974,29974,29975,29976,29974,29974,29975,29976,29977,29980,29981,29981,29982,29982,29983,29983,29984,29984,29985,29985,29986]} 1. d4 {[%emt 0:01:55]} Nf6 {[%emt 0:00:06]} 2. Nf3 {[%emt 0:00:07]} d5 {[%emt 0:00:17]} 3. c4 {[%emt 0:00:27]} e6 {[%emt 0:00:03]} 4. Nc3 {[%emt 0:00:11]} Nbd7 {[%emt 0:05:51]} 5. cxd5 {[%emt 0:00:27]} exd5 {[%emt 0:00:02]} 6. Bg5 {[%emt 0:00:23]} c6 {[%emt 0:03:02]} 7. e3 {[%emt 0:00:07]} Be7 {[%emt 0:02:32]} 8. Qc2 {[%emt 0:00:08]} O-O {[%emt 0:05:51]} 9. Bd3 {[%emt 0:00:07]} Re8 {[%emt 0:03:56]} 10. O-O {[%emt 0:00:14]} h6 {[%emt 0:02:00]} 11. Bh4 {[%emt 0:00:15]} Ne4 {[%emt 0:00:08]} 12. Bxe7 {[%emt 0:01:28]} Qxe7 {[%emt 0:00:04]} 13. Rab1 {[%emt 0:00:07] 13.b4 is more fashionable.} Nd6 {[%emt 0:22:46] D36: Queen's Gambit Declined: Exchange Variation: Main line (5 Bg5 c6 6 Qc2).} 14. Rfc1 {[%emt 0:02:09] [#]} Qf6 $146 {[%emt 0:13:52]} ({Predecessor:} 14... a6 15. Na4 Rb8 16. b4 b5 17. Nc5 Nc4 18. Qc3 Nxc5 19. dxc5 a5 20. a3 Ra8 21. Ra1 {0-1 (48) Sakai,A (1713)-Plaza Reino,M (1727) Batumi 2018}) 15. Ne2 {[%emt 0:01:38]} a5 {[%emt 0:02:16] The position is equal.} 16. Ng3 {[%emt 0:00:39]} g6 {[%emt 0:01:11]} 17. b3 {[%emt 0:02:34]} h5 {[%emt 0:00:24]} 18. h3 {[%emt 0:00:21]} Nf8 {[%emt 0:14:45][%cal Oc8h3]} 19. Ne5 {[%emt 0:02:26]} Ne6 {[%emt 0:01:21] [#]} (19... Nd7 $11) 20. a3 {[%emt 0:02:16]} (20. Nxc6 $1 $16 {[%mdl 512] Strongly threatening Ne5.} bxc6 21. Qxc6) 20... Ng5 {[%emt 0:01:21]} (20... Rd8 $11) 21. f4 {[%emt 0:01:31]} (21. h4 $14 Nh7 22. Nxh5 $1 gxh5 23. Bxh7+ Kg7 24. Bd3) 21... Ne6 $11 {[%emt 0:03:51]} 22. b4 {[%emt 0:22:45]} (22. Nf1 $11) 22... axb4 $15 {[%emt 0:00:26]} 23. axb4 {[%emt 0:00:05]} Nc7 {[%emt 0:01:54] Inhibits b5.} (23... h4 $1 $15 {is more appropriate.} 24. Nh1 Nc7) 24. Rf1 $1 $11 {[%emt 0:04:59]} h4 {[%emt 0:02:15]} 25. f5 $1 {[%emt 0:00:34][%cal Rf5g6]} Qg5 {[%emt 0:00:02]} (25... hxg3 $2 26. fxg6 Qh4 27. gxf7+ Nxf7 28. Rxf7 Rxe5 29. Rf4 (29. Rxc7 Re7 $16) 29... Qxf4 30. exf4 $18) 26. fxg6 {[%emt 0:02:39]} f6 {[%emt 0:00:05]} (26... Qxg3 $2 27. gxf7+ Kh8 28. fxe8=Q+ $18) 27. Nh5 {[%emt 0:04:46]} Qxh5 {[%emt 0:08:19]} (27... fxe5 $5 28. Nf6+ Kg7 29. Nxe8+ Ncxe8 30. dxe5 (30. Qf2 $2 e4 $19) 30... Qxe3+ 31. Qf2 Nc4 $11) 28. Rxf6 {[%emt 0:00:07]} Be6 $2 {[%emt 0:03:13]} (28... Rxe5 $2 29. dxe5 Qxe5 30. Qf2 $18) (28... Qg5 $1 $11 29. Rxd6 Qxe3+ 30. Qf2 Qxf2+ 31. Kxf2 Ne6) 29. Rbf1 $2 {[%emt 0:02:23]} (29. Qf2 $1 $18 Ne4 30. Bxe4 dxe4 31. Rf1) 29... Qg5 $14 {[%emt 0:00:11][%csl LRe3,LRh3]} 30. R6f4 {[%emt 0:11:40] The board is on fire. White is more active.} ({White should try} 30. g7 $16 {Threatening mate with Bh7+.} Ne4 31. Bxe4 dxe4 32. Qxe4) 30... Rf8 {[%emt 0:00:56]} 31. Qf2 {[%emt 0:02:09][%cal Rf4f8]} Qe7 {[%emt 0:00:01]} 32. Qxh4 {[%emt 0:03:05]} Qxh4 {[%emt 0:00:06]} 33. Rxh4 {[%emt 0:00:03]} Rxf1+ {[%emt 0:00:05]} 34. Kxf1 {[%emt 0:00:06]} Bf5 {[%emt 0:01:14]} 35. Bxf5 {[%emt 0:02:24]} Nxf5 {[%emt 0:00:01]} 36. Rh7 {[%emt 0:00:07]} Ne6 {[%emt 0:01:29]} (36... Nxe3+ $2 37. Kf2 $18) 37. Nd7 {[%emt 0:02:50][%mdl 1024] White has compensation.} (37. Ng4 $5 {[%cal Rg4f6]} Rf8 38. Ke2 $14) 37... Ra1+ {[%emt 0:00:38]} (37... Nxe3+ $2 38. Kf2 Nd1+ 39. Ke1 $18) 38. Kf2 $1 {[%emt 0:02:24]} Ra2+ {[%emt 0:01:57]} 39. Kg1 {[%emt 0:00:03] Intending Nf6+ and mate.} Neg7 {[%emt 0:00:23]} 40. Nf6+ {[%emt 0:00:14]} Kf8 {[%emt 0:00:01]} 41. Ng4 {[%emt 0:30:09]} Rb2 {[%emt 0:08:56]} 42. h4 {[%emt 0:00:00]} Ng3 {[%emt 0:01:18] Inhibits h5.} 43. Kh2 {[%emt 0:00:00]} Nf1+ {[%emt 0:00:36][%mdl 8192]} (43... N3h5 $1 $11 {and Black stays safe.}) 44. Kh3 $18 {[%emt 0:00:00]} Nxe3 {[%emt 0:00:06]} 45. Nxe3 {[%emt 0:00:00][%mdl 4096] Endgame KRN-KRN} Rb3 {[%emt 0:00:02] [#]} 46. Kg4 $1 {[%emt 0:00:00]} Rxe3 {[%emt 0:00:08] [#] KRN-KR} 47. h5 $1 {[%emt 0:00:00]} Re4+ {[%emt 0:22:13]} 48. Kg5 {[%emt 0:00:00] h6 is the strong threat.} Nxh5 {[%emt 0:00:56]} (48... Re2 $142 49. Rh8+ Ke7) 49. Kxh5 {[%emt 0:00:00] KR-KR} b6 {[%emt 0:00:03]} 50. Rb7 {[%emt 0:00:00]} Rxd4 {[%emt 0:00:11]} 51. Rxb6 {[%emt 0:00:00]} Rc4 {[%emt 0:01:24]} 52. g4 {[%emt 0:00:00]} Rc1 {[%emt 0:00:32]} 53. Rb8+ {[%emt 0:00:00]} Kg7 {[%emt 0:00:03]} 54. Rb7+ {[%emt 0:00:00]} Kg8 {[%emt 0:00:01]} 55. Kh6 {[%emt 0:00:00][%cal Rb7b8]} Rh1+ {[%emt 0:00:14]} 56. Kg5 {[%emt 0:00:00] White threatens Rc7 and mate.} Re1 {[%emt 0:02:07]} (56... d4 $18 57. Rd7 Rd1) 57. Kf6 $2 {[%emt 0:00:00]} (57. Rc7 {mates} d4 58. Rxc6 Kg7 59. Rc7+ Kg8 60. b5 d3 61. Rd7 (61. b6 d2 $14) 61... Kf8 62. g7+ Kg8 63. Kf6) 57... Rf1+ $11 {[%emt 0:00:09]} 58. Ke5 {[%emt 0:00:00] Threatens to win with Rc7.} Re1+ {[%emt 0:00:19]} 59. Kf6 {[%emt 0:03:17] Rb8+ would kill now.} Rf1+ {[%emt 0:00:05]} 60. Kg5 {[%emt 0:00:07] White wants to mate with Rc7.} Rf8 $2 {[%emt 0:01:32][%mdl 8192]} (60... Re1 $11) 61. Rd7 {[%emt 0:01:41] White mates.} Rf1 {[%emt 0:00:37]} 62. Rc7 {[%emt 0:03:47]} d4 {[%emt 0:00:26]} 63. Rxc6 {[%emt 0:02:39]} Rb1 {[%emt 0:00:35]} 64. Rc8+ {[%emt 0:01:22]} Kg7 {[%emt 0:00:03]} 65. Rc7+ {[%emt 0:00:05]} Kg8 {[%emt 0:00:39]} 66. Rd7 {[%emt 0:01:42]} Rxb4 {[%emt 0:00:15] [#]} 67. Kh6 $1 {[%emt 0:00:06][%cal Rd7d8]} Rb8 {[%emt 0:00:05]} 68. Rxd4 {[%emt 0:00:07]} Rf8 {[%emt 0:00:08]} 69. Rd6 {[%emt 0:00:34]} Re8 {[%emt 0:01:34]} 70. g5 {[%emt 0:00:16]} Ra8 {[%emt 0:00:25]} 71. g7 {[%emt 0:00:32]} Rb8 {[%emt 0:00:22]} 72. Rf6 {[%emt 0:00:18] Weighted Error Value: White=0.34/Black=0.61} 1-0